fUST/lending_fUST_20250508
["ID","MTS","AMOUNT","RATE_DAILY","PERIOD"]
[360231010,1746640246671,-400.0,0.00013698,2]
[360231011,1746640246681,-975.07,0.00013698,2]
[360231014,1746640246692,-400.0,0.00013698,2]
[360231015,1746640246702,-6665.94,0.00013698,2]
[360231017,1746640246711,-6419.53,0.00013698,2]
[360231019,1746640246721,-1000.54203791,0.00013698,2]
[360231518,1746640618866,42349.94185084,0.000219,30]
[360231519,1746640618898,73146.81459916,0.000219,30]
[360231535,1746641031068,5000.0,0.00012,2]
[360231536,1746641031099,83242.29370154,0.00012,2]
[360231584,1746641432243,-300.0,0.00012629,2]
[360231586,1746641432255,-1200.0,0.00012629,2]
[360231588,1746641432266,-300.0,0.00012629,2]
[360231590,1746641432276,-500.0,0.0001263,2]
[360231592,1746641432286,-305.80497304,0.0001263,2]
[360231594,1746641432296,-500.0,0.0001263,2]
[360231596,1746641432306,-500.0,0.0001263,2]
[360231598,1746641432315,-137.14246577,0.0001263,2]
[360231602,1746641432347,-362.85753423,0.0001263,2]
[360231604,1746641432359,-583.59958471,0.0001263,2]
[360231606,1746641432369,-500.0,0.0001263,2]
[360231608,1746641432379,-500.0,0.0001263,2]
[360231610,1746641432389,-250.0,0.0001263,2]
[360231612,1746641432399,-500.0,0.0001263,2]
[360231614,1746641432408,-1122.49969014,0.0001263,2]
[360231616,1746641432418,-3023.6576368,0.00012633,2]
[360231618,1746641432428,-1947.2439131,0.00012688,2]
[360231620,1746641432438,-231.28369723,0.00013446,2]
[360231622,1746641432448,-579.56575289,0.00013587,2]
[360231624,1746641432457,-434.73060369,0.00013598,2]
[360231626,1746641432469,-458.2569407,0.00013598,2]
[360231630,1746641432487,-479.058227,0.00013598,2]
[360231858,1746641438531,-281.48476881,0.00013598,2]
[360231860,1746641438545,-236.38542177,0.00013598,2]
[360231862,1746641438556,-404.0,0.00013662,2]
[360231864,1746641438567,-257.12436797,0.00013697,2]
[360231866,1746641438577,-179.98705757,0.00013697,2]
[360231868,1746641438588,-130.81838408,0.00013698,2]
[360231870,1746641438600,-81.25899061,0.00013698,2]
[360231872,1746641438611,-160.0,0.00013698,2]
[360231874,1746641438622,-842.118303,0.00013698,2]
[360231876,1746641438632,-160.0,0.00013698,2]
[360231878,1746641438645,-160.0,0.00013698,2]
[360231880,1746641438655,-313.97932589,0.00013698,2]
[360231882,1746641438665,-160.0,0.00013698,2]
[360231884,1746641438675,-160.0,0.00013698,2]
[360231886,1746641438685,-160.0,0.00013698,2]
[360231888,1746641438695,-160.0,0.00013698,2]
[360231890,1746641438706,-160.0,0.00013698,2]
[360231892,1746641438716,-400.0,0.00013698,2]
[360231894,1746641438726,-412.54239458,0.00013698,2]
[360231896,1746641438736,-400.0,0.00013698,2]
[360231898,1746641438746,-400.0,0.00013698,2]
[360231900,1746641438757,-765.03,0.00013698,2]
[360231902,1746641438767,-400.0,0.00013698,2]
[360231904,1746641438779,-400.0,0.00013698,2]
[360231906,1746641438793,-400.0,0.00013698,2]
[360231908,1746641438804,-400.0,0.00013698,2]
[360231910,1746641438814,-400.0,0.00013698,2]
[360231912,1746641438824,-400.0,0.00013698,2]
[360231914,1746641438835,-400.0,0.00013698,2]
[360231915,1746641438847,-400.0,0.00013698,2]
[360231918,1746641438859,-400.0,0.00013698,2]
[360231920,1746641438870,-400.0,0.00013698,2]
[360231923,1746641438881,-400.0,0.00013698,2]
[360231925,1746641438893,-338.93725458,0.00013698,2]
[360231928,1746641438916,-61.06274542,0.00013698,2]
[360231930,1746641438927,-400.0,0.00013698,2]
[360231932,1746641438939,-467.52,0.00013698,2]
[360231934,1746641438951,-3043.75,0.00013698,2]
[360231936,1746641438962,-400.0,0.00013698,2]
[360231938,1746641438973,-400.0,0.00013698,2]
[360231940,1746641438984,-400.0,0.00013698,2]
[360231942,1746641438994,-436.62,0.00013698,2]
[360231944,1746641439005,-400.0,0.00013698,2]
[360231946,1746641439016,-400.0,0.00013698,2]
[360231949,1746641439027,-400.0,0.00013698,2]
[360231951,1746641439036,-483.52770788,0.00013698,2]
[360231953,1746641439051,-673.33,0.00013698,2]
[360231955,1746641439062,-662.66,0.00013698,2]
[360231957,1746641439075,-400.0,0.00013698,2]
[360231959,1746641439084,-439.74,0.00013698,2]
[360231961,1746641439094,-409.99799419,0.00013698,2]
[360231963,1746641439104,-993.75,0.00013698,2]
[360231965,1746641439113,-812.86,0.00013698,2]
[360231967,1746641439123,-400.0,0.00013698,2]
[360231969,1746641439133,-400.0,0.00013698,2]
[360231971,1746641439144,-512.2,0.00013698,2]
[360231973,1746641439155,-404.2,0.00013698,2]
[360231975,1746641439165,-456.99,0.00013698,2]
[360231977,1746641439176,-400.0,0.00013698,2]
[360231979,1746641439186,-400.0,0.00013698,2]
[360231981,1746641439200,-400.0,0.00013698,2]
[360231983,1746641439210,-400.0,0.00013698,2]
[360231985,1746641439220,-400.0,0.00013698,2]
[360231987,1746641439230,-400.0,0.00013698,2]
[360231989,1746641439240,-400.0,0.00013698,2]
[360231991,1746641439251,-400.0,0.00013698,2]
[360231992,1746641439260,-400.0,0.00013698,2]
[360231994,1746641439270,-501.86899752,0.00013698,2]
[360232062,1746641440716,-34.52100248,0.00013698,2]
[360232064,1746641440727,-549.88,0.00013698,2]
[360232065,1746641440736,-400.0,0.00013698,2]
[360232067,1746641440747,-504.71,0.00013698,2]
[360232069,1746641440757,-400.0,0.00013698,2]
[360232071,1746641440766,-1057.14,0.00013698,2]
[360232073,1746641440777,-61.57787949,0.00013698,2]
[360232430,1746641446346,-160.0,0.00013575,2]
[360232432,1746641446355,-138.65768432,0.00013698,2]
[360232434,1746641446367,-199.76443619,0.00013698,2]
[360232435,1746641446377,-400.0,0.00013698,2]
[360232436,1746641446387,-403.37530137,0.00013698,2]
[360232437,1746641446397,-400.0,0.00013698,2]
[360232438,1746641446409,-1003.59,0.00013698,2]
[360232439,1746641446419,-318.27021494,0.00013698,2]
[360232442,1746641446604,-132.86978506,0.00013698,2]
[360232444,1746641446614,-400.0,0.00013698,2]
[360232445,1746641446625,-310.07659194,0.00013698,2]
[360232446,1746641446636,-2600.37176295,0.00013698,2]
[360232483,1746641971926,24900.0,0.00011998,2]
[360232508,1746642271272,2962.1386402,0.00011992,2]
[360232546,1746642632504,-300.0,0.00012071,2]
[360232547,1746642632514,-300.0,0.00012071,2]
[360232548,1746642632523,-1200.0,0.00012071,2]
[360232549,1746642632533,-300.0,0.00012071,2]
[360232550,1746642632543,-500.0,0.00012072,2]
[360232551,1746642632553,-500.0,0.00012072,2]
[360232552,1746642632562,-500.0,0.00012072,2]
[360232553,1746642632572,-581.13803318,0.00012072,2]
[360232554,1746642632582,-375.0,0.00012072,2]
[360232555,1746642632592,-500.0,0.00012072,2]
[360232557,1746642632602,-518.50446711,0.00012072,2]
[360232559,1746642632615,-500.0,0.00012072,2]
[360232560,1746642632625,-638.17169675,0.00012072,2]
[360232561,1746642632635,-500.0,0.00012072,2]
[360232562,1746642632645,-500.0,0.00012072,2]
[360232563,1746642632655,-500.0,0.00012072,2]
[360232564,1746642632665,-500.0,0.00012072,2]
[360232565,1746642632675,-500.0,0.00012072,2]
[360232566,1746642632685,-500.0,0.00012072,2]
[360232567,1746642632695,-500.0,0.00012072,2]
[360232568,1746642632705,-500.0,0.00012072,2]
[360232569,1746642632715,-500.0,0.00012072,2]
[360232570,1746642632725,-500.0,0.00012072,2]
[360232571,1746642632734,-500.0,0.00012072,2]
[360232572,1746642632744,-500.0,0.00012072,2]
[360232573,1746642632754,-500.0,0.00012072,2]
[360232574,1746642632764,-500.0,0.00012072,2]
[360232575,1746642632774,-500.0,0.00012072,2]
[360232576,1746642632784,-282.73417194,0.00012072,2]
[360232577,1746642632794,-500.0,0.00012072,2]
[360232578,1746642632804,-500.0,0.00012072,2]
[360232579,1746642632813,-500.0,0.00012072,2]
[360232580,1746642632824,-500.0,0.00012072,2]
[360232581,1746642632834,-500.0,0.00012072,2]
[360232582,1746642632844,-736.91421481,0.00012072,2]
[360232583,1746642632854,-801.508584,0.00012077,2]
[360232584,1746642632865,-874.6101783,0.00012078,2]
[360232585,1746642632875,-309.5008986,0.00012107,2]
[360232586,1746642632885,-250.0,0.0001243,2]
[360232587,1746642632895,-690.76467562,0.0001253,2]
[360232588,1746642632905,-1000.0,0.0001253,2]
[360232589,1746642632914,-420.0,0.0001325,2]
[360232590,1746642632924,-192.0,0.0001325,2]
[360232591,1746642632934,-293.64318526,0.00013255,2]
[360232592,1746642632943,-1200.0,0.00013278,2]
[360232593,1746642632953,-842.118303,0.00013537,2]
[360232594,1746642632963,-160.0,0.00013537,2]
[360232595,1746642632972,-160.0,0.00013537,2]
[360232596,1746642632981,-160.0,0.00013537,2]
[360232597,1746642632990,-313.97932589,0.00013537,2]
[360232598,1746642633000,-160.0,0.00013537,2]
[360232599,1746642633009,-160.0,0.00013537,2]
[360232600,1746642633019,-160.0,0.00013537,2]
[360232601,1746642633028,-160.0,0.00013537,2]
[360232602,1746642633038,-160.0,0.00013537,2]
[360232603,1746642633048,-212.07737469,0.00013537,2]
[360232604,1746642633057,-160.0,0.00013537,2]
[360232605,1746642633067,-746.68814173,0.00013598,2]
[360232606,1746642633077,-1731.85101549,0.00013598,2]
[360232607,1746642633087,-401.78426685,0.00013598,2]
[360232608,1746642633097,-1845.69601148,0.00013598,2]
[360232609,1746642633107,-746.6881417,0.00013632,2]
[360232610,1746642633117,-746.6881417,0.00013665,2]
[360232611,1746642633127,-500.0,0.00013673,2]
[360232612,1746642633137,-652.20111982,0.00013688,2]
[360232613,1746642633147,-151.0,0.00013698,2]
[360232614,1746642633157,-400.88233975,0.00013698,2]
[360232615,1746642633167,-400.0,0.00013698,2]
[360232616,1746642633178,-400.0,0.00013698,2]
[360232617,1746642633188,-400.0,0.00013698,2]
[360232618,1746642633198,-400.0,0.00013698,2]
[360232619,1746642633208,-400.0,0.00013698,2]
[360232620,1746642633218,-400.0,0.00013698,2]
[360232621,1746642633228,-400.0,0.00013698,2]
[360232622,1746642633238,-400.0,0.00013698,2]
[360232623,1746642633248,-400.0,0.00013698,2]
[360232624,1746642633257,-432.34,0.00013698,2]
[360232625,1746642633267,-400.0,0.00013698,2]
[360232626,1746642633277,-400.0,0.00013698,2]
[360232627,1746642633287,-400.0,0.00013698,2]
[360232628,1746642633297,-400.0,0.00013698,2]
[360232629,1746642633308,-400.0,0.00013698,2]
[360232630,1746642633318,-400.0,0.00013698,2]
[360232631,1746642633328,-400.0,0.00013698,2]
[360232632,1746642633338,-400.0,0.00013698,2]
[360232633,1746642633347,-400.0,0.00013698,2]
[360232634,1746642633358,-502.24376111,0.00013698,2]
[360232635,1746642633370,-400.0,0.00013698,2]
[360232636,1746642633380,-400.0,0.00013698,2]
[360232637,1746642633389,-400.0,0.00013698,2]
[360232638,1746642633399,-401.23151972,0.00013698,2]
[360232639,1746642633410,-400.0,0.00013698,2]
[360232640,1746642633420,-503.73426215,0.00013698,2]
[360232641,1746642633430,-400.0,0.00013698,2]
[360232642,1746642633440,-505.53879319,0.00013698,2]
[360232643,1746642633450,-501.33775893,0.00013698,2]
[360232644,1746642633461,-400.0,0.00013698,2]
[360232645,1746642633471,-400.0,0.00013698,2]
[360232646,1746642633481,-306.64014966,0.00013698,2]
[360232647,1746642633491,-406.46074781,0.00013698,2]
[360232648,1746642633502,-400.0,0.00013698,2]
[360232649,1746642633512,-1834.69,0.00013698,2]
[360232650,1746642633522,-251.19467261,0.00013698,2]
[360232651,1746642633532,-501.50016075,0.00013698,2]
[360232652,1746642633542,-400.0,0.00013698,2]
[360232653,1746642633551,-407.25174126,0.00013698,2]
[360232654,1746642633561,-451.76,0.00013698,2]
[360232655,1746642633572,-403.33667502,0.00013698,2]
[360232656,1746642633583,-400.0,0.00013698,2]
[360232657,1746642633593,-400.0,0.00013698,2]
[360232658,1746642633604,-400.0,0.00013698,2]
[360232659,1746642633616,-645.27,0.00013698,2]
[360232660,1746642633627,-400.0,0.00013698,2]
[360232661,1746642633637,-778.99,0.00013698,2]
[360232662,1746642633648,-381.32058519,0.00013698,2]
[360232663,1746642633662,-18.67941481,0.00013698,2]
[360232664,1746642633673,-400.0,0.00013698,2]
[360232665,1746642633683,-444.24,0.00013698,2]
[360232666,1746642633693,-400.0,0.00013698,2]
[360232667,1746642633703,-547.29,0.00013698,2]
[360232668,1746642633713,-189.79058519,0.00013698,2]
[360232669,1746642633730,-317.73941481,0.00013698,2]
[360232670,1746642633740,-33.89611174,0.00013698,2]
[360232787,1746642640937,-366.10388826,0.00013698,2]
[360232789,1746642640947,-400.0,0.00013698,2]
[360232791,1746642640957,-400.0,0.00013698,2]
[360232793,1746642640966,-400.0,0.00013698,2]
[360232795,1746642640976,-177.76566203,0.00013698,2]
[360233069,1746642643508,-222.23433797,0.00013698,2]
[360233071,1746642643518,-389.9083941,0.00013698,2]
[360233073,1746642643529,-514.04,0.00013698,2]
[360233075,1746642643539,-79.53776061,0.00013698,2]
[360233078,1746642643551,-320.46223939,0.00013698,2]
[360233080,1746642643561,-526.96,0.00013698,2]
[360233082,1746642643570,-500.0,0.00013698,2]
[360233084,1746642643580,-500.0,0.00013698,2]
[360233086,1746642643589,-500.0,0.00013698,2]
[360233088,1746642643599,-500.0,0.00013698,2]
[360233089,1746642643608,-500.0,0.00013698,2]
[360233092,1746642643620,-500.0,0.00013698,2]
[360233094,1746642643629,-349.45955837,0.00013698,2]
[360233824,1746643832579,-464.79238653,0.00013436,2]
[360233825,1746643832590,-543.24806943,0.00013468,2]
[360233826,1746643832600,-464.7923865,0.00013484,2]
[360233827,1746643832610,-375.0,0.00013496,2]
[360233828,1746643832620,-500.0,0.00013496,2]
[360233829,1746643832630,-531.41490799,0.00013496,2]
[360233830,1746643832640,-1743.8694564,0.00013497,2]
[360233831,1746643832650,-300.0,0.00013515,2]
[360233832,1746643832660,-47641.26053336,0.00013516,2]
[360233833,1746643832670,-313.97932589,0.00013516,2]
[360233834,1746643832680,-160.0,0.00013516,2]
[360233835,1746643832690,-160.0,0.00013516,2]
[360233836,1746643832700,-160.0,0.00013516,2]
[360233837,1746643832709,-160.0,0.00013516,2]
[360233838,1746643832720,-160.0,0.00013516,2]
[360233839,1746643832731,-160.0,0.00013516,2]
[360233840,1746643832740,-212.07737469,0.00013516,2]
[360233841,1746643832750,-842.118303,0.00013516,2]
[360233842,1746643832764,-160.0,0.00013516,2]
[360233843,1746643832773,-160.0,0.00013516,2]
[360233844,1746643832783,-160.0,0.00013516,2]
[360233845,1746643832792,-464.7923865,0.00013531,2]
[360233846,1746643832803,-464.7923865,0.00013579,2]
[360233847,1746643832812,-423.13826998,0.00013598,2]
[360233848,1746643832822,-420.2373806,0.00013626,2]
[360233852,1746643832918,-44.5550059,0.00013626,2]
[360233853,1746643832928,-151.26375873,0.00013698,2]
[360233854,1746643832938,-400.0,0.00013698,2]
[360233855,1746643832948,-400.0,0.00013698,2]
[360233856,1746643832958,-400.0,0.00013698,2]
[360233857,1746643832968,-524.49,0.00013698,2]
[360233858,1746643832977,-400.0,0.00013698,2]
[360233859,1746643832988,-400.0,0.00013698,2]
[360233860,1746643832998,-400.0,0.00013698,2]
[360233861,1746643833008,-644.51,0.00013698,2]
[360233862,1746643833018,-610.0,0.00013698,2]
[360233864,1746643833028,-400.0,0.00013698,2]
[360233865,1746643833038,-400.0,0.00013698,2]
[360233868,1746643833048,-613.92,0.00013698,2]
[360233870,1746643833059,-400.0,0.00013698,2]
[360233871,1746643833068,-794.11180468,0.00013698,2]
[360233888,1746643838615,-174.15816897,0.00013515,2]
[360233889,1746643838625,-108.26378353,0.00013515,2]
[360234194,1746643843708,-389.00833914,0.00013515,2]
[360234196,1746643843718,-182.96664433,0.00013515,2]
[360234198,1746643843729,-426.69830048,0.00013576,2]
[360234201,1746643843741,-116.54976895,0.00013576,2]
[360234203,1746643843753,-42.24819532,0.00013698,2]
[360234205,1746643843765,-400.0,0.00013698,2]
[360234207,1746643843775,-400.0,0.00013698,2]
[360234209,1746643843785,-400.0,0.00013698,2]
[360234211,1746643843794,-400.0,0.00013698,2]
[360234213,1746643843805,-425.44320329,0.00013698,2]
[360234215,1746643843815,-400.0,0.00013698,2]
[360234217,1746643843825,-432.94,0.00013698,2]
[360234218,1746643843836,-952.34,0.00013698,2]
[360234221,1746643843847,-400.0,0.00013698,2]
[360234223,1746643843857,-400.0,0.00013698,2]
[360234225,1746643843867,-400.0,0.00013698,2]
[360234227,1746643843876,-400.0,0.00013698,2]
[360234229,1746643843886,-400.0,0.00013698,2]
[360234232,1746643843896,-400.0,0.00013698,2]
[360234235,1746643843905,-400.0,0.00013698,2]
[360234238,1746643843915,-400.0,0.00013698,2]
[360234240,1746643843925,-470.61960958,0.00013698,2]
[360234242,1746643843934,-400.0,0.00013698,2]
[360234245,1746643843944,-733.16,0.00013698,2]
[360234247,1746643843953,-618.39,0.00013698,2]
[360234250,1746643843964,-400.0,0.00013698,2]
[360234251,1746643843973,-421.42,0.00013698,2]
[360234253,1746643843983,-400.0,0.00013698,2]
[360234255,1746643843995,-505.01,0.00013698,2]
[360234257,1746643844007,-746.53,0.00013698,2]
[360234260,1746643844017,-400.0,0.00013698,2]
[360234262,1746643844027,-486.38,0.00013698,2]
[360234264,1746643844038,-1013.09,0.00013698,2]
[360234266,1746643844047,-425.73,0.00013698,2]
[360234267,1746643844058,-400.0,0.00013698,2]
[360234270,1746643844068,-400.0,0.00013698,2]
[360234272,1746643844078,-413.3159763,0.00013698,2]
[360234274,1746643844088,-961.77,0.00013698,2]
[360234276,1746643844097,-397.88547737,0.00013698,2]
[360234278,1746643844107,-400.0,0.00013698,2]
[360234280,1746643844116,-400.0,0.00013698,2]
[360234282,1746643844125,-492.62,0.00013698,2]
[360234284,1746643844135,-500.0,0.00013698,2]
[360234286,1746643844144,-500.0,0.00013698,2]
[360234288,1746643844154,-4814.37,0.00013698,2]
[360234289,1746643844164,-500.0,0.00013698,2]
[360234291,1746643844174,-500.0,0.00013698,2]
[360234293,1746643844183,-500.0,0.00013698,2]
[360234295,1746643844193,-500.0,0.00013698,2]
[360234297,1746643844202,-500.0,0.00013698,2]
[360234299,1746643844212,-174.63390857,0.00013698,2]
[360234301,1746643844222,-483.68,0.00013698,2]
[360234303,1746643844232,-400.0,0.00013698,2]
[360234305,1746643844245,-400.0,0.00013698,2]
[360234307,1746643844255,-400.0,0.00013698,2]
[360234309,1746643844265,-400.0,0.00013698,2]
[360234311,1746643844274,-400.0,0.00013698,2]
[360234313,1746643844284,-400.0,0.00013698,2]
[360234315,1746643844294,-3001.09,0.00013698,2]
[360234317,1746643844303,-1985.66,0.00013698,2]
[360234319,1746643844313,-1029.24,0.00013698,2]
[360234321,1746643844322,-400.0,0.00013698,2]
[360234324,1746643844334,-400.0,0.00013698,2]
[360234326,1746643844343,-417.60361028,0.00013698,2]
[360234328,1746643844353,-400.0,0.00013698,2]
[360234330,1746643844363,-678.68,0.00013698,2]
[360234332,1746643844373,-400.0,0.00013698,2]
[360234333,1746643844382,-400.0,0.00013698,2]
[360234335,1746643844392,-400.0,0.00013698,2]
[360234337,1746643844402,-400.0,0.00013698,2]
[360234339,1746643844411,-400.0,0.00013698,2]
[360234341,1746643844421,-400.0,0.00013698,2]
[360234343,1746643844430,-400.0,0.00013698,2]
[360234345,1746643844440,-969.75,0.00013698,2]
[360234347,1746643844451,-400.0,0.00013698,2]
[360234349,1746643844461,-400.0,0.00013698,2]
[360234351,1746643844473,-500.0,0.00013698,2]
[360234353,1746643844484,-400.0,0.00013698,2]
[360234356,1746643844497,-242.4967869,0.00013698,2]
[360234358,1746643844508,-567.77,0.00013698,2]
[360234359,1746643844518,-400.0,0.00013698,2]
[360234361,1746643844528,-925.72,0.00013698,2]
[360234363,1746643844538,-913.82,0.00013698,2]
[360234365,1746643844548,-980.13,0.00013698,2]
[360234368,1746643844559,-500.0,0.00013698,2]
[360234370,1746643844569,-579.98469715,0.00013698,2]
[360234372,1746643844584,-109.63530285,0.00013698,2]
[360234374,1746643844594,-378.23859281,0.00013698,2]
[360234377,1746643844610,-153.55140719,0.00013698,2]
[360234379,1746643844621,-1219.51,0.00013698,2]
[360234381,1746643844630,-400.0,0.00013698,2]
[360234383,1746643844640,-238.90424904,0.00013698,2]
[360234598,1746643846966,-161.09575096,0.00013698,2]
[360234600,1746643846976,-2643.09,0.00013698,2]
[360234602,1746643846985,-400.0,0.00013698,2]
[360234603,1746643846996,-400.0,0.00013698,2]
[360234604,1746643847006,-475.87,0.00013698,2]
[360234606,1746643847016,-400.0,0.00013698,2]
[360234608,1746643847026,-401.00902361,0.00013698,2]
[360234610,1746643847036,-400.0,0.00013698,2]
[360234612,1746643847045,-400.0,0.00013698,2]
[360234614,1746643847055,-400.0,0.00013698,2]
[360234616,1746643847065,-400.0,0.00013698,2]
[360234618,1746643847074,-646.59,0.00013698,2]
[360234620,1746643847084,-400.0,0.00013698,2]
[360234622,1746643847094,-319.32365543,0.00013698,2]
[360234912,1746645031748,-479.88811627,0.00013563,2]
[360234914,1746645031760,-300.0,0.00013581,2]
[360234916,1746645031772,-300.0,0.00013581,2]
[360234918,1746645031784,-300.0,0.00013581,2]
[360234920,1746645031796,-300.0,0.00013581,2]
[360234923,1746645031809,-1200.0,0.00013581,2]
[360234925,1746645031822,-4196.59759928,0.00013582,2]
[360234927,1746645031835,-500.0,0.00013582,2]
[360234929,1746645031848,-500.0,0.00013582,2]
[360234932,1746645031861,-500.0,0.00013582,2]
[360234934,1746645031875,-500.0,0.00013582,2]
[360234936,1746645031888,-500.0,0.00013582,2]
[360234939,1746645031900,-500.0,0.00013582,2]
[360234941,1746645031912,-500.0,0.00013582,2]
[360234943,1746645031924,-500.0,0.00013582,2]
[360234945,1746645031936,-500.0,0.00013582,2]
[360234948,1746645031949,-500.0,0.00013582,2]
[360234950,1746645031962,-500.0,0.00013582,2]
[360234952,1746645031973,-410.43491328,0.00013582,2]
[360234954,1746645031986,-500.0,0.00013582,2]
[360234957,1746645031998,-500.0,0.00013582,2]
[360234959,1746645032009,-500.0,0.00013582,2]
[360234961,1746645032022,-500.0,0.00013582,2]
[360234963,1746645032033,-500.0,0.00013582,2]
[360234965,1746645032046,-500.0,0.00013582,2]
[360234968,1746645032058,-500.0,0.00013582,2]
[360234970,1746645032070,-500.0,0.00013582,2]
[360234972,1746645032084,-500.0,0.00013582,2]
[360234974,1746645032096,-500.0,0.00013582,2]
[360234976,1746645032109,-3607.95698407,0.00013598,2]
[360234979,1746645032131,-2295.95704301,0.00013598,2]
[360235251,1746645040243,-1831.16299047,0.00013598,2]
[360235253,1746645040256,-1516.97617946,0.00013598,2]
[360235258,1746645040296,-1866.2977369,0.00013598,2]
[360235264,1746645040352,-57495.70354653,0.00013598,2]
[360235266,1746645040362,-207.4,0.0001369,2]
[360235268,1746645040372,-212.07737469,0.00013697,2]
[360235270,1746645040382,-160.0,0.00013697,2]
[360235272,1746645040392,-842.118303,0.00013697,2]
[360235274,1746645040402,-313.97932589,0.00013697,2]
[360235276,1746645040411,-160.0,0.00013697,2]
[360235278,1746645040421,-160.0,0.00013697,2]
[360235280,1746645040432,-160.0,0.00013697,2]
[360235282,1746645040442,-160.0,0.00013697,2]
[360235284,1746645040451,-160.0,0.00013697,2]
[360235286,1746645040461,-160.0,0.00013697,2]
[360235288,1746645040470,-160.0,0.00013697,2]
[360235290,1746645040480,-160.0,0.00013697,2]
[360235292,1746645040490,-400.0,0.00013698,2]
[360235294,1746645040499,-400.0,0.00013698,2]
[360235296,1746645040509,-400.0,0.00013698,2]
[360235297,1746645040518,-400.0,0.00013698,2]
[360235300,1746645040528,-702.61,0.00013698,2]
[360235301,1746645040537,-400.0,0.00013698,2]
[360235303,1746645040547,-400.0,0.00013698,2]
[360235305,1746645040557,-400.0,0.00013698,2]
[360235308,1746645040568,-400.0,0.00013698,2]
[360235310,1746645040577,-400.0,0.00013698,2]
[360235312,1746645040587,-421.48759677,0.00013698,2]
[360235313,1746645040597,-400.0,0.00013698,2]
[360235317,1746645040620,-400.0,0.00013698,2]
[360235319,1746645040630,-400.0,0.00013698,2]
[360235321,1746645040640,-400.0,0.00013698,2]
[360235323,1746645040651,-448.04,0.00013698,2]
[360235325,1746645040661,-400.0,0.00013698,2]
[360235327,1746645040671,-619.65,0.00013698,2]
[360235329,1746645040682,-400.0,0.00013698,2]
[360235331,1746645040692,-400.0,0.00013698,2]
[360235333,1746645040702,-400.0,0.00013698,2]
[360235335,1746645040712,-400.0,0.00013698,2]
[360235337,1746645040722,-400.0,0.00013698,2]
[360235339,1746645040733,-414.9,0.00013698,2]
[360235341,1746645040743,-400.0,0.00013698,2]
[360235343,1746645040754,-912.66,0.00013698,2]
[360235345,1746645040765,-592.62,0.00013698,2]
[360235347,1746645040775,-403.86,0.00013698,2]
[360235349,1746645040785,-400.0,0.00013698,2]
[360235351,1746645040795,-400.0,0.00013698,2]
[360235353,1746645040806,-466.12,0.00013698,2]
[360235355,1746645040816,-400.0,0.00013698,2]
[360235357,1746645040827,-715.42,0.00013698,2]
[360235359,1746645040838,-400.0,0.00013698,2]
[360235361,1746645040850,-400.0,0.00013698,2]
[360235363,1746645040860,-377.57502659,0.00013698,2]
[360235366,1746645040870,-407.99,0.00013698,2]
[360235368,1746645040880,-400.0,0.00013698,2]
[360235370,1746645040891,-400.0,0.00013698,2]
[360235372,1746645040901,-483.97,0.00013698,2]
[360235374,1746645040911,-400.0,0.00013698,2]